fUSD/lending_fUSD_20240414
["ID","MTS","AMOUNT","RATE_DAILY","PERIOD"]
[322580276,1713083442336,-1646.464,0.00028958,2]
[322580278,1713083442345,-226.0,0.00028958,2]
[322580280,1713083442354,-399.52,0.00028958,2]
[322580282,1713083442364,-443.186,0.00028958,2]
[322580283,1713083442373,-4803.0,0.00028958,2]
[322580286,1713083442383,-1391.0,0.00028958,2]
[322580289,1713083442393,-968.0,0.00028958,2]
[322580292,1713083442402,-461.0,0.00028958,2]
[322580293,1713083442411,-2291.0,0.00028958,2]
[322580295,1713083442420,-37623.0,0.00028958,2]
[322580298,1713083442429,-562.05444632,0.00029,2]
[322580301,1713083442439,-6750.20773336,0.00029,2]
[322580303,1713083442448,-500000.0,0.00029,2]
[322580306,1713083442458,-2000.0,0.00029,2]
[322580308,1713083442468,-700.0,0.00029,3]
[322580309,1713083442478,-153.28,0.00029,2]
[322580311,1713083442488,-153.28,0.00029,2]
[322580314,1713083442498,-153.28,0.00029,2]
[322580316,1713083442507,-153.28,0.00029,2]
[322580320,1713083442516,-153.28,0.00029,2]
[322580322,1713083442526,-153.28,0.00029,2]
[322580325,1713083442536,-153.28,0.00029,2]
[322580327,1713083442545,-153.28,0.00029,2]
[322580330,1713083442555,-153.28,0.00029,2]
[322580332,1713083442565,-153.28,0.00029,2]
[322580334,1713083442574,-153.28,0.00029,2]
[322580335,1713083442584,-153.28,0.00029,2]
[322580337,1713083442593,-153.28,0.00029,2]
[322580339,1713083442603,-153.28,0.00029,2]
[322580340,1713083442624,-153.28,0.00029,2]
[322580342,1713083442634,-153.28,0.00029,2]
[322580344,1713083442643,-153.28,0.00029,2]
[322580346,1713083442653,-153.28,0.00029,2]
[322580348,1713083442663,-153.28,0.00029,2]
[322580349,1713083442673,-153.28,0.00029,2]
[322580351,1713083442684,-153.28,0.00029,2]
[322580353,1713083442693,-153.28,0.00029,2]
[322580355,1713083442703,-153.28,0.00029,2]
[322580357,1713083442712,-153.28,0.00029,2]
[322580359,1713083442720,-153.28,0.00029,2]
[322580360,1713083442730,-167.0,0.00029138,2]
[322580362,1713083442739,-151.97376118,0.00029254,2]
[322580364,1713083442749,-442.25500705,0.000295,3]
[322580366,1713083442758,-595.30948057,0.0003,2]
[322580368,1713083442768,-1604.15536046,0.0003,4]
[322580370,1713083442779,-200.0,0.0003,7]
[322580372,1713083442788,-200.0,0.0003,7]
[322580373,1713083442797,-200.0,0.0003,7]
[322580375,1713083442807,-200.0,0.0003,7]
[322580377,1713083442817,-200.0,0.0003,7]
[322580379,1713083442827,-3046.91361707,0.0003,3]
[322580381,1713083442837,-32465.15634058,0.0003,4]
[322580383,1713083442847,-19327.24766397,0.0003,4]
[322580385,1713083442857,-5672.99698819,0.0003,2]
[322580387,1713083442867,-10927.55619612,0.0003,7]
[322580388,1713083442877,-420.91017053,0.0003,2]
[322580390,1713083442887,-573.8307527,0.0003,30]
[322580392,1713083442897,-6945.86910959,0.0003,2]
[322580394,1713083442907,-205.72513863,0.0003,3]
[322580396,1713083442917,-312.27,0.0003,2]
[322580398,1713083442927,-250.29,0.0003,2]
[322580400,1713083442937,-14910.76477347,0.0003,4]
[322580401,1713083442947,-680.2898,0.0003,4]
[322580403,1713083442956,-2000.0,0.0003,3]
[322580405,1713083442966,-151.97376118,0.00030034,2]
[322580407,1713083442976,-167.0,0.0003004,2]
[322580409,1713083442988,-3750.0,0.000301,2]
[322580411,1713083442997,-180.0,0.00030258,2]
[322580412,1713083443008,-526.0,0.00030384,2]
[322580414,1713083443017,-534.0,0.00030384,2]
[322580416,1713083443026,-5719.0,0.0003055,2]
[322580418,1713083443041,-1315.0,0.0003055,2]
[322580420,1713083443050,-2466.0,0.0003055,2]
[322580422,1713083443060,-381.46,0.00030713,2]
[322580424,1713083443070,-1000.0,0.0003079,2]
[322580426,1713083443079,-151.97376118,0.00030815,2]
[322580427,1713083443088,-167.0,0.00030942,2]
[322580429,1713083443097,-50000.0,0.00031,2]
[322580431,1713083443106,-2000.0,0.00031,5]
[322580433,1713083443116,-750.0,0.00031,3]
[322580435,1713083443126,-12500.0,0.00031122,2]
[322580437,1713083443135,-12500.0,0.00031173,2]
[322580438,1713083443145,-1095.0,0.00031567,5]
[322580440,1713083443154,-150.0,0.00031585,2]
[322580442,1713083443164,-150.0,0.00031585,2]
[322580444,1713083443173,-151.97376118,0.00031596,2]
[322580446,1713083443183,-526.0,0.00031754,2]
[322580449,1713083443192,-534.0,0.00031754,2]
[322580451,1713083443202,-167.0,0.00031844,2]
[322580452,1713083443211,-150.0,0.00031958,2]
[322580455,1713083443221,-399.0,0.00031958,2]
[322580457,1713083443230,-3043.0,0.00031958,2]
[322580460,1713083443239,-1472.0,0.00031958,2]
[322580463,1713083443248,-1140.0,0.00031958,2]
[322580465,1713083443257,-150.0,0.00031958,2]
[322580467,1713083443267,-2440.0,0.00031958,2]
[322580469,1713083443275,-1637.0,0.00031958,2]
[322580489,1713083443488,-214.0,0.00031958,2]
[322580490,1713083443510,-355.0,0.00031958,2]
[322580491,1713083443520,-443.0,0.00031958,2]
[322580492,1713083443529,-4803.0,0.00031958,2]
[322580493,1713083443539,-1391.0,0.00031958,2]
[322580494,1713083443547,-968.0,0.00031958,2]
[322580495,1713083443556,-461.0,0.00031958,2]
[322580496,1713083443565,-2291.0,0.00031958,2]
[322580497,1713083443574,-37623.0,0.00031958,2]
[322580498,1713083443583,-50000.0,0.00032,2]
[322580499,1713083443593,-332.37940372,0.00032,4]
[322580500,1713083443606,-1000.0,0.00032,7]
[322580501,1713083443632,-151.97376118,0.00032376,2]
[322580502,1713083443642,-611.44133086,0.000326,20]
[322580503,1713083443651,-3028.05,0.00032603,2]
[322580504,1713083443660,-6664.69,0.00032603,2]
[322580506,1713083443669,-16813.37905777,0.000328,2]
[322580507,1713083443679,-1000.0,0.00032877,15]
[322580509,1713083443689,-152.29,0.00032877,2]
[322580511,1713083443698,-150.0,0.00032877,30]
[322580513,1713083443707,-150.0,0.00032877,30]
[322580515,1713083443716,-597.37918106,0.0003288,2]
[322580517,1713083443726,-597.37918106,0.0003288,2]
[322580519,1713083443735,-597.37918106,0.0003288,2]
[322580521,1713083443744,-597.37918106,0.0003288,2]
[322580523,1713083443753,-597.37918106,0.0003288,2]
[322580525,1713083443762,-597.37918106,0.0003288,2]
[322580527,1713083443771,-597.37918106,0.0003288,2]
[322580530,1713083443782,-597.37918106,0.0003288,2]
[322580532,1713083443791,-597.37918106,0.0003288,2]
[322580534,1713083443801,-597.37918106,0.0003288,2]
[322580536,1713083443810,-597.37918106,0.0003288,2]
[322580538,1713083443819,-597.37918106,0.0003288,2]
[322580539,1713083443828,-597.37918106,0.0003288,2]
[322580541,1713083443838,-597.37918106,0.0003288,2]
[322580543,1713083443847,-597.37918106,0.0003288,2]
[322580546,1713083443857,-597.37918106,0.0003288,2]
[322580548,1713083443866,-597.37918106,0.0003288,2]
[322580549,1713083443875,-597.37918106,0.0003288,2]
[322580552,1713083443886,-597.37918106,0.0003288,2]
[322580553,1713083443895,-597.87,0.0003288,2]
[322580555,1713083443905,-242.69075615,0.0003288,2]
[322580557,1713083443914,-242.69075615,0.0003288,2]
[322580560,1713083443923,-242.69075615,0.0003288,2]
[322580562,1713083443933,-242.69075615,0.0003288,2]
[322580564,1713083443942,-242.69075615,0.0003288,2]
[322580566,1713083443951,-242.69075615,0.0003288,2]
[322580567,1713083443963,-242.69075615,0.0003288,2]
[322580570,1713083443973,-242.69075615,0.0003288,2]
[322580571,1713083443982,-242.69075615,0.0003288,2]
[322580574,1713083443991,-242.69075615,0.0003288,2]
[322580575,1713083444001,-242.69075615,0.0003288,2]
[322580578,1713083444011,-242.69075615,0.0003288,2]
[322580580,1713083444022,-242.69075615,0.0003288,2]
[322580582,1713083444031,-242.69075615,0.0003288,2]
[322580584,1713083444041,-242.69075615,0.0003288,2]
[322580586,1713083444051,-242.69075615,0.0003288,2]
[322580588,1713083444060,-242.69075615,0.0003288,2]
[322580590,1713083444069,-242.69075615,0.0003288,2]
[322580592,1713083444078,-242.69075615,0.0003288,2]
[322580594,1713083444087,-243.19,0.0003288,2]
[322580596,1713083444096,-153.11077437,0.0003288,2]
[322580598,1713083444106,-153.11077437,0.0003288,2]
[322580600,1713083444115,-153.11077437,0.0003288,2]
[322580602,1713083444124,-153.11077437,0.0003288,2]
[322580604,1713083444133,-153.11077437,0.0003288,2]
[322580606,1713083444142,-153.61,0.0003288,2]
[322580608,1713083444153,-223.83244146,0.0003288,2]
[322580610,1713083444162,-223.83244146,0.0003288,2]
[322580612,1713083444171,-223.83244146,0.0003288,2]
[322580614,1713083444180,-223.83244146,0.0003288,2]
[322580616,1713083444189,-223.83244146,0.0003288,2]
[322580618,1713083444198,-223.83244146,0.0003288,2]
[322580620,1713083444207,-223.83244146,0.0003288,2]
[322580622,1713083444217,-223.83244146,0.0003288,2]
[322580624,1713083444226,-223.83244146,0.0003288,2]
[322580626,1713083444235,-223.83244146,0.0003288,2]
[322580628,1713083444245,-223.83244146,0.0003288,2]
[322580630,1713083444255,-223.83244146,0.0003288,2]
[322580632,1713083444264,-223.83244146,0.0003288,2]
[322580634,1713083444273,-223.83244146,0.0003288,2]
[322580636,1713083444283,-223.83244146,0.0003288,2]
[322580638,1713083444292,-223.83244146,0.0003288,2]
[322580640,1713083444303,-223.83244146,0.0003288,2]
[322580642,1713083444312,-223.83244146,0.0003288,2]
[322580644,1713083444321,-223.83244146,0.0003288,2]
[322580646,1713083444331,-224.33,0.0003288,2]
[322580648,1713083444340,-1500.0,0.000329,2]
[322580650,1713083444350,-381.46,0.00032977,2]
[322580652,1713083444359,-50000.0,0.00033,3]
[322580654,1713083444368,-800.0,0.00033,3]
[322580656,1713083444378,-526.0,0.00033123,2]
[322580658,1713083444387,-534.0,0.00033123,2]
[322580660,1713083444396,-151.97376118,0.00033157,2]
[322580662,1713083444406,-189.7,0.00033165,2]
[322580664,1713083444416,-1000.0,0.0003329,2]
[322580666,1713083444425,-5719.0,0.0003355,2]
[322580668,1713083444434,-953.608,0.0003355,2]
[322580670,1713083444444,-151.238,0.00033633,7]
[322580673,1713083444453,-150.0,0.00033633,7]
[322580674,1713083444462,-2100.0,0.00033633,2]
[322580676,1713083444471,-453.598544,0.000338,120]
[322580678,1713083444481,-151.97376118,0.00033937,2]
[322580680,1713083444490,-200.0,0.00033945,10]
[322580682,1713083444499,-1000.0,0.00033945,15]
[322580684,1713083444509,-500.0,0.00033945,10]
[322580687,1713083444520,-150.0,0.00033999,30]
[322580689,1713083444530,-150.0,0.00033999,30]
[322580691,1713083444541,-50000.0,0.00034,4]
[322580693,1713083444551,-696390.58972385,0.00034,15]
[322580695,1713083444561,-1979.33517126,0.00034,3]
[322580696,1713083444570,-1000.0,0.00034247,2]
[322580699,1713083444580,-111361.28510563,0.0003436,7]
[322580701,1713083444589,-526.0,0.00034493,2]
[322580702,1713083444598,-534.0,0.00034493,2]
[322580704,1713083444612,-200.0,0.00034549,10]
[322580707,1713083444621,-150.0,0.00034585,2]
[322580709,1713083444631,-151.97376118,0.00034718,2]
[322580711,1713083444641,-150.0,0.00034799,30]
[322580713,1713083444652,-15287.88792509,0.000348,14]
[322580714,1713083444661,-212280.07957149,0.000348,5]
[322580716,1713083444670,-485.0706225,0.000348,5]
[322580718,1713083444680,-1130.0,0.00034958,2]
[322580721,1713083444689,-307.665,0.00034958,2]
[322580722,1713083444698,-214.0,0.00034958,2]
[322580725,1713083444708,-355.0,0.00034958,2]
[322580727,1713083444717,-443.0,0.00034958,2]
[322580729,1713083444727,-4803.0,0.00034958,2]
[322580730,1713083444736,-7653.098,0.00034958,2]
[322580733,1713083444746,-1009.6411,0.0003498,14]
[322580735,1713083444756,-50000.0,0.00035,5]
[322580737,1713083444766,-155.18100376,0.00035,4]
[322580739,1713083444775,-9663.23524333,0.00035,4]
[322580741,1713083444785,-5000.0,0.00035,4]
[322580743,1713083444795,-157.33487293,0.00035,30]
[322580745,1713083444804,-13585.9832203,0.00035,2]
[322580747,1713083444814,-2575.96514984,0.00035,7]
[322580749,1713083444822,-19453.22092378,0.00035,2]
[322580751,1713083444832,-3302.15021382,0.00035,4]
[322580753,1713083444841,-15693.10702785,0.00035,4]
[322580755,1713083444850,-296.61,0.00035,2]
[322580757,1713083444859,-850.0,0.00035,3]
[322580759,1713083444868,-1000.0,0.00035,14]
[322580761,1713083444877,-500.0,0.00035,7]
[322580763,1713083444886,-381.46,0.00035241,2]
[322580764,1713083444896,-150.0,0.00035254,120]
[322580767,1713083444906,-1426.65,0.00035288,15]
[322580769,1713083444916,-151.97376118,0.00035498,2]
[322580771,1713083444924,-2018.83708771,0.000356,30]
[322580773,1713083444935,-312.27,0.000356,2]
[322580775,1713083444944,-250.29,0.000356,2]
[322580777,1713083444953,-2000.0,0.0003582,30]
[322580779,1713083444962,-155.16,0.00035827,2]
[322580780,1713083444971,-526.0,0.00035863,7]
[322580783,1713083444981,-534.0,0.00035863,7]
[322580785,1713083444990,-100000.0,0.00036,6]
[322580787,1713083444999,-1980.20860659,0.000362,2]
[322580789,1713083445010,-1003.1,0.000362,2]
[322580791,1713083445019,-151.97376118,0.00036279,2]
[322580793,1713083445028,-600.0,0.000364,120]
[322580795,1713083445038,-280.65544228,0.00036579,2]
[322580796,1713083445047,-200.0,0.00036647,2]
[322580799,1713083445056,-150.0,0.00036762,30]
[322580801,1713083445065,-151.0,0.00036763,7]
[322580803,1713083445075,-151.0,0.00036763,7]
[322580804,1713083445085,-151.0,0.00036763,7]
[322580807,1713083445095,-151.0,0.00036763,7]
[322580808,1713083445104,-151.0,0.00036763,7]
[322580810,1713083445114,-152.983343,0.00036763,7]
[322580812,1713083445123,-151.0,0.00036763,7]
[322580815,1713083445133,-151.0,0.00036763,7]
[322580817,1713083445145,-278.679887,0.00036763,7]
[322580819,1713083445154,-151.0,0.00036763,7]
[322580820,1713083445164,-151.0,0.00036763,7]
[322580823,1713083445174,-278.679887,0.00036763,7]
[322580824,1713083445183,-151.0,0.00036763,7]
[322580825,1713083445192,-151.0,0.00036763,7]
[322580826,1713083445201,-151.0,0.00036763,7]
[322580827,1713083445211,-151.0,0.00036763,7]
[322580828,1713083445221,-151.0,0.00036763,7]
[322580829,1713083445230,-151.0,0.00036763,7]
[322580830,1713083445239,-151.0,0.00036763,7]
[322580831,1713083445248,-151.0,0.00036763,7]
[322580832,1713083445258,-151.0,0.00036763,7]
[322580834,1713083445267,-151.0,0.00036763,7]
[322580835,1713083445276,-151.0,0.00036763,7]
[322580836,1713083445286,-151.0,0.00036763,7]
[322580837,1713083445295,-183.541545,0.00036763,7]
[322580838,1713083445304,-183.541545,0.00036763,7]
[322580839,1713083445315,-620.82949,0.00036763,7]
[322580841,1713083445324,-151.0,0.00036763,7]
[322580843,1713083445333,-151.0,0.00036763,7]
[322580844,1713083445342,-620.82949,0.00036763,7]
[322580845,1713083445351,-152.987335,0.00036763,7]
[322580846,1713083445360,-151.0,0.00036763,7]
[322580847,1713083445369,-151.0,0.00036763,7]
[322580848,1713083445379,-151.0,0.00036763,7]
[322580849,1713083445388,-221.381863,0.00036763,7]
[322580850,1713083445397,-221.381863,0.00036763,7]
[322580851,1713083445406,-151.0,0.00036763,7]
[322580852,1713083445416,-151.0,0.00036763,7]
[322580853,1713083445425,-151.0,0.00036763,7]
[322580854,1713083445434,-151.0,0.00036763,7]
[322580855,1713083445444,-151.0,0.00036763,7]
[322580856,1713083445453,-151.0,0.00036763,7]
[322580858,1713083445462,-151.0,0.00036763,7]
[322580860,1713083445471,-151.0,0.00036763,7]
[322580862,1713083445481,-200.0,0.00036784,7]
[322580864,1713083445490,-200.0,0.00036784,7]
[322580866,1713083445499,-200.0,0.00036784,7]
[322580868,1713083445508,-1468.6,0.000368,3]
[322580870,1713083445517,-1468.6,0.000368,3]
[322580872,1713083445526,-1468.6,0.000368,3]
[322580873,1713083445537,-1468.6,0.000368,3]
[322580876,1713083445546,-1468.6,0.000368,3]
[322580878,1713083445556,-1468.6,0.000368,3]
[322580879,1713083445565,-1468.6,0.000368,3]
[322580881,1713083445575,-1468.6,0.000368,3]
[322580884,1713083445585,-1468.6,0.000368,3]
[322580885,1713083445594,-1468.6,0.000368,3]
[322580887,1713083445603,-1468.6,0.000368,3]
[322580889,1713083445617,-1468.6,0.000368,3]
[322580891,1713083445627,-1468.6,0.000368,3]
[322580893,1713083445636,-1468.6,0.000368,3]
[322580895,1713083445645,-1468.6,0.000368,3]
[322580897,1713083445655,-1468.6,0.000368,3]
[322580899,1713083445665,-1468.6,0.000368,3]
[322580901,1713083445674,-1468.6,0.000368,3]
[322580903,1713083445683,-1468.6,0.000368,3]
[322580905,1713083445693,-1468.6,0.000368,3]
[322580907,1713083445702,-200.0,0.00036821,7]
[322580909,1713083445711,-200.0,0.00036821,7]
[322580912,1713083445721,-200.0,0.00036821,7]
[322580913,1713083445730,-200.0,0.00036821,7]
[322580915,1713083445740,-200.0,0.00036821,7]
[322580917,1713083445750,-180.212021,0.00036831,7]
[322580919,1713083445759,-180.212021,0.00036831,7]
[322580921,1713083445769,-151.0,0.00036831,7]
[322580923,1713083445779,-151.0,0.00036831,7]
[322580926,1713083445789,-151.0,0.00036831,7]
[322580927,1713083445798,-151.0,0.00036831,7]
[322580928,1713083445806,-151.0,0.00036831,7]
[322580929,1713083445816,-151.0,0.00036831,7]
[322580930,1713083445825,-190.472073,0.00036831,7]
[322580931,1713083445835,-151.0,0.00036831,7]
[322580932,1713083445844,-156.64346,0.00036831,7]
[322580933,1713083445854,-151.0,0.00036831,7]
[322580934,1713083445864,-156.64346,0.00036831,7]
[322580935,1713083445873,-152.452481,0.00036831,7]
[322580936,1713083445883,-151.0,0.00036831,7]
[322580937,1713083445893,-151.0,0.00036831,7]
[322580938,1713083445903,-406.925173,0.00036831,7]
[322580939,1713083445912,-406.925173,0.00036831,7]
[322580940,1713083445921,-629.007227,0.00036831,7]
[322580941,1713083445931,-335.53364,0.00036831,7]
[322580942,1713083445941,-335.53364,0.00036831,7]
[322580943,1713083445951,-629.007227,0.00036831,7]
[322580944,1713083445960,-345.205664,0.00036831,7]
[322580945,1713083445969,-345.205664,0.00036831,7]
[322580946,1713083445979,-151.0,0.00036831,7]
[322580948,1713083445988,-151.0,0.00036831,7]
[322580950,1713083445998,-1574.573127,0.00036831,7]
[322580952,1713083446008,-174.577867,0.00036831,7]
[322580954,1713083446018,-210.624112,0.00036831,7]
[322580956,1713083446029,-1574.573127,0.00036831,7]
[322580958,1713083446041,-174.577867,0.00036831,7]
[322580960,1713083446051,-591.527116,0.00036831,7]
[322580962,1713083446061,-151.0,0.00036831,7]
[322580964,1713083446070,-591.527116,0.00036831,7]
[322580966,1713083446081,-151.0,0.00036831,7]
[322580968,1713083446090,-151.0,0.00036831,7]
[322580970,1713083446100,-238.251371,0.00036831,7]
[322580972,1713083446110,-238.251371,0.00036831,7]
[322580974,1713083446121,-542.60175026,0.00036838,5]
[322580976,1713083446132,-148076.73872688,0.00036838,2]
[322580978,1713083446142,-114546.57606492,0.00036838,2]
[322580980,1713083446152,-10249.63326842,0.00036838,3]
[322580982,1713083446162,-3357.71883332,0.00036838,2]
[322580984,1713083446172,-675.52856393,0.00036838,10]
[322580986,1713083446182,-202.79340631,0.00036838,7]
[322580988,1713083446192,-595.67450542,0.00036838,6]
[322580990,1713083446202,-10406.70917945,0.00036838,2]
[322580992,1713083446213,-12132.01641964,0.00036838,2]
[322580994,1713083446223,-56331.32960523,0.00036838,10]
[322580995,1713083446233,-509.27078102,0.00036838,7]
[322580996,1713083446243,-133588.29715961,0.00036838,2]
[322580997,1713083446254,-397.7604959,0.00036838,7]
[322580998,1713083446265,-29269.72086411,0.00036838,15]
[322580999,1713083446275,-22176.61469261,0.00036838,2]
[322581000,1713083446286,-14716.6852727,0.00036838,2]
[322581001,1713083446296,-796.4891766,0.00036838,2]
[322581002,1713083446306,-193.10608388,0.00036838,15]
[322581003,1713083446317,-2143.31291769,0.00036838,10]
[322581004,1713083446327,-60381.13244413,0.00036838,2]
[322581005,1713083446338,-571.57625107,0.00036838,5]
[322581006,1713083446349,-828.05913282,0.00036838,10]
[322581007,1713083446358,-12488.72711038,0.00036838,2]
[322581008,1713083446370,-14381.94638183,0.00036838,3]
[322581009,1713083446382,-4000.0,0.00036838,3]
[322581010,1713083446392,-26152.88981258,0.00036838,5]
[322581011,1713083446401,-500.0,0.00036838,10]
[322581012,1713083446411,-16300.25517211,0.00036838,2]
[322581013,1713083446422,-231.75897948,0.00036838,2]
[322581014,1713083446431,-10423.8098237,0.00036838,2]
[322581015,1713083446441,-155.69237347,0.00036838,2]
[322581016,1713083446451,-164990.7177396,0.00036838,2]
[322581017,1713083446461,-14554.18995939,0.00036838,2]
[322581018,1713083446471,-3547.78476599,0.00036838,15]
[322581019,1713083446481,-1239.59529615,0.00036838,4]
[322581020,1713083446491,-946.92764814,0.00036838,4]
[322581021,1713083446500,-10332.14647854,0.00036838,2]
[322581022,1713083446509,-14248.98325068,0.00036838,2]
[322581023,1713083446519,-234.63242382,0.00036838,5]
[322581024,1713083446529,-9861.43014922,0.00036838,15]
[322581025,1713083446539,-149453.09889355,0.00036838,2]
[322581026,1713083446549,-2720.72148304,0.00036838,7]
[322581027,1713083446558,-20697.17650864,0.00036838,2]
[322581028,1713083446568,-27080.33595335,0.00036838,2]
[322581029,1713083446577,-5672.59894071,0.00036838,2]
[322581030,1713083446587,-10221.66876629,0.00036838,2]
[322581031,1713083446597,-406740.71374096,0.00036838,2]
[322581032,1713083446611,-26864.22626519,0.00036838,2]
[322581033,1713083446622,-183.32688044,0.00036838,7]
[322581034,1713083446633,-1120.64515478,0.00036838,10]
[322581035,1713083446645,-14823.78316089,0.00036838,2]
[322581036,1713083446655,-21400.36163323,0.00036838,2]
[322581037,1713083446665,-2026.93484754,0.00036838,10]
[322581038,1713083446676,-3281.0310742,0.00036838,7]
[322581039,1713083446687,-527.68943673,0.00036838,5]
[322581040,1713083446698,-741.93971446,0.00036838,10]
[322581041,1713083446709,-263.06053332,0.00036838,10]
[322581042,1713083446720,-2925.47049298,0.00036838,2]
[322581043,1713083446731,-275.0,0.00036838,14]
[322581044,1713083446742,-9057.42657939,0.00036838,2]
[322581045,1713083446752,-34961.63113947,0.00036838,2]
[322581046,1713083446763,-503159.988231,0.00036838,2]
[322581047,1713083446774,-211.15041514,0.00036838,7]
[322581048,1713083446785,-18987.03563501,0.00036838,3]
[322581049,1713083446797,-642.13518236,0.00036838,14]
[322581050,1713083446807,-6528.52001372,0.00036838,4]
[322581051,1713083446817,-3843.07740348,0.00036838,3]
[322581052,1713083446826,-1760.75450467,0.00036838,2]
[322581053,1713083446836,-1521.64255758,0.00036838,20]
[322581054,1713083446846,-208.28362471,0.00036838,7]
[322581055,1713083446856,-29653.85151388,0.00036838,4]
[322581056,1713083446865,-205.26272692,0.00036838,5]
[322581057,1713083446875,-11534.2087434,0.00036838,2]
[322581058,1713083446884,-218.8551412,0.00036838,15]
[322581059,1713083446894,-13000.0,0.00036838,2]
[322581060,1713083446903,-13681.92164015,0.00036838,2]
[322581061,1713083446913,-23100.66533494,0.00036838,2]
[322581062,1713083446923,-5001.52147279,0.00036838,2]
[322581063,1713083446932,-211.3269149,0.00036838,2]
[322581064,1713083446943,-151.0,0.00036838,7]
[322581065,1713083446953,-151.0,0.00036838,7]
[322581066,1713083446964,-287.053689,0.00036838,7]
[322581067,1713083446975,-219.491669,0.00036838,7]
[322581068,1713083446985,-219.491669,0.00036838,7]
[322581069,1713083446995,-151.0,0.00036838,7]
[322581070,1713083447005,-151.0,0.00036838,7]
[322581071,1713083447016,-151.0,0.00036838,7]
[322581072,1713083447026,-152.29,0.00036986,2]
[322581073,1713083447039,-150.0,0.00036999,30]
[322581074,1713083447048,-100000.0,0.00037,7]
[322581075,1713083447263,-246096.42926149,0.00037,4]
[322581076,1713083447274,-900.0,0.00037,3]
[322581077,1713083447286,-151.97376118,0.00037059,2]
[322581078,1713083447296,-526.0,0.00037233,7]
[322581079,1713083447307,-381.46,0.00037504,2]
[322581080,1713083447317,-150.0,0.00037762,120]
[322581081,1713083447327,-151.97376118,0.0003784,2]
[322581082,1713083447338,-355.0,0.00037958,2]
[322581083,1713083447349,-100000.0,0.00038,8]
[322581084,1713083447361,-1426.65,0.00038027,15]
[322581085,1713083447372,-523.0,0.00038603,7]
[322581086,1713083447382,-151.97376118,0.00038621,2]
[322581087,1713083447392,-150.0,0.00038641,120]
[322581088,1713083447402,-189.7,0.00038933,2]
[322581089,1713083447412,-100000.0,0.00039,9]
[322581090,1713083447423,-950.0,0.00039,3]
[322581091,1713083447433,-200.0,0.00039122,15]
[322581092,1713083447443,-1000.0,0.00039122,20]
[322581093,1713083447453,-500.0,0.00039122,20]
[322581094,1713083447463,-200.0,0.00039122,20]
[322581095,1713083447473,-150.0,0.0003928,120]
[322581096,1713083447482,-151.97376118,0.00039401,4]
[322581097,1713083447492,-185.0,0.0003943,31]
[322581098,1713083447503,-150.0,0.00039588,120]
[322581099,1713083447513,-150.0,0.0003976,120]
[322581100,1713083447523,-381.46,0.00039768,2]
[322581101,1713083447533,-706.54954833,0.000399,48]
[322581102,1713083447542,-706.54954827,0.000399,48]
[322581103,1713083447553,-706.54954827,0.000399,48]
[322581104,1713083447562,-706.54954827,0.000399,48]
[322581105,1713083447572,-706.54954827,0.000399,48]
[322581106,1713083447582,-706.54954827,0.000399,48]
[322581107,1713083447591,-706.54954827,0.000399,48]
[322581108,1713083447603,-523.0,0.00039973,7]
[322581109,1713083447615,-100000.0,0.0004,40]
[322581110,1713083447625,-22139.36635788,0.0004,4]
[322581111,1713083447635,-548.35400054,0.0004,4]
[322581112,1713083447646,-2524.71893379,0.0004,5]
[322581113,1713083447656,-959.45180685,0.0004,30]